bitfinex/quotes_ETHUSD_20250518
["timestamp","ask_amount","ask_price","bid_price","bid_amount"]
[1747555849691,13.45844439,2521.2,2520.7,3.96714416]
[1747555850087,9.492,2521.2,2520.8,3.96690326]
[1747555850257,9.492,2521.2,2520.3,0.37357025]
[1747555850455,13.4583955,2521.2,2520.7,3.96706282]
[1747555850777,13.45844089,2521.2,2520.7,3.96714034]
[1747555850979,5.26488456,2521.3,2520.8,3.96698798]
[1747555851179,18.809,2521.1,2520.8,3.96698798]
[1747555851374,9.492,2521.2,2520.3,0.21386354]
[1747555851688,18.8,2521.2,2520.7,3.96700919]
[1747555851887,18.8,2521.2,2520.3,0.21386354]
[1747555851888,3.96660605,2521.1,2520.5,3.96733562]
[1747555852191,3.96652254,2521.1,2520.8,0.37417015]
[1747555852567,25.56948819,2521.2,2520.8,0.37417015]
[1747555852770,21.60309433,2521.2,2520.8,0.37417015]
[1747555852964,25.56955229,2521.2,2520.8,0.37417015]
[1747555853767,3.9665519,2521.1,2520.8,0.37417015]
[1747555853965,3.9665519,2521.1,2520.9,0.37417015]
[1747555854893,25.56946707,2521.2,2520.9,0.37417015]
[1747555855089,2.68680671,2521.1,2520.9,0.37417015]
[1747555855293,6.65345549,2521.1,2520.9,0.37417015]
[1747555855503,6.65345549,2521.1,2520.7,0.37417015]
[1747555855672,2.68680671,2521.1,2520.7,4.34128882]
[1747555855872,18.8,2521.2,2520.8,3.96696958]
[1747555856072,5.26487931,2521.3,2520.8,3.96696958]
[1747555856278,18.744,2521.2,2520.8,3.96696958]
[1747555856468,18.744,2521.2,2520.7,0.37417015]
[1747555856801,18.744,2521.2,2520.8,3.96696022]
[1747555856963,1.2986,2521.3,2520.9,3.9667825]
[1747555857295,18.492,2521.2,2520.8,0.37417015]
[1747555857697,3.96666859,2521.1,2520.8,0.37417015]
[1747555857900,3.96675406,2521.0,2520.8,0.37417015]
[1747555858206,3.96655361,2521.1,2520.8,0.37417015]
[1747555858766,20.8676817,2521.2,2520.9,0.37417015]
[1747555858767,3.96667988,2521.0,2520.9,0.37417015]
[1747555859905,4.1890477,2521.0,2520.9,0.37417015]
[1747555860095,7.09137542,2521.0,2520.9,0.37417015]
[1747555860293,3.96686201,2520.9,2520.4,4.34177911]
[1747555860495,3.96702444,2520.8,2520.4,0.37417015]
[1747555860692,18.447,2520.7,2520.4,0.37417015]
[1747555861188,19.7935,2520.7,2520.4,0.37417015]
[1747555861400,19.7935,2520.7,2520.0,0.62200165]
[1747555861401,5.9136994,2520.6,2520.0,0.62200165]
[1747555861600,1.94639003,2520.6,2520.0,0.62200165]
[1747555861768,18.442,2520.5,2520.1,3.96796619]
[1747555861968,18.66447305,2520.5,2520.1,3.9680965]
[1747555862397,9.46847305,2520.5,2520.4,3.96762418]
[1747555862583,0.22247305,2520.5,2520.4,3.96762418]
[1747555862970,20.668,2520.7,2520.5,3.96745445]
[1747555863203,11.422,2520.7,2520.1,1.2299]
[1747555863596,11.422,2520.7,2520.4,3.96751021]
[1747555864111,11.422,2520.7,2520.6,3.96730937]
[1747555864469,11.422,2520.7,2520.5,0.3752779]
[1747555864874,11.422,2520.7,2520.6,3.96730937]
[1747555865265,9.246,2520.9,2520.6,3.96730937]
[1747555865471,9.246,2520.9,2520.8,3.9669946]
[1747555865671,9.246,2521.2,2520.8,3.96692606]
[1747555866205,9.246,2521.2,2520.9,3.96680938]
[1747555866370,9.246,2521.2,2521.0,3.96657089]
[1747555866569,9.246,2521.3,2521.1,3.96648819]
[1747555866772,9.246,2521.3,2521.2,0.3752779]
[1747555867990,16.5903275,2521.3,2521.2,0.3752779]
[1747555868620,16.81260947,2521.3,2521.2,0.3752779]
[1747555868913,12.84640157,2521.3,2520.7,3.96706786]
[1747555869113,0.22228197,2521.3,2520.9,3.96674252]
[1747555869417,0.22228197,2521.3,2521.1,3.96648176]
[1747555869622,9.246,2521.3,2521.1,3.96648176]
[1747555869779,9.246,2521.3,2521.0,3.96660535]
[1747555871103,9.246,2521.3,2521.1,3.96642173]
[1747555871504,9.246,2521.3,2521.0,3.96661026]
[1747555871707,12.2209,2521.3,2520.8,3.96688231]
[1747555872019,9.246,2521.4,2521.2,0.37497194]
[1747555872521,9.246,2521.4,2521.2,4.3412468]
[1747555873114,11.423,2521.5,2521.3,0.37497194]
[1747555873312,11.423,2521.5,2521.3,4.34113867]
[1747555873313,20.668,2521.5,2521.3,4.34113867]
[1747555873513,20.668,2521.5,2521.3,0.37497194]
[1747555873717,20.668,2521.5,2521.3,4.3411192]
[1747555874081,20.668,2521.5,2521.3,0.37497194]
[1747555874917,10.5328,2521.9,2521.3,4.34109697]
[1747555875087,14.4980889,2521.9,2521.3,0.37497194]
[1747555875287,10.5328,2521.9,2521.3,0.37497194]
[1747555875487,3.9660506,2521.4,2521.3,0.37497194]
[1747555875818,14.4988506,2521.4,2521.3,0.37497194]
[1747555876017,17.24852733,2521.4,2521.3,0.37497194]
[1747555876314,17.24852733,2521.4,2521.3,0.32497194]
[1747555876884,17.47071976,2521.4,2521.3,0.32497194]
[1747555877521,26.48471976,2521.4,2521.3,0.32497194]
[1747555879287,3.9665671,2521.1,2520.5,3.96742772]
[1747555879523,18.241,2521.0,2520.7,3.96704858]
[1747555879731,9.245,2520.9,2520.8,3.96690036]
[1747555879937,9.245,2520.9,2520.3,1.3016]
[1747555880113,9.245,2520.9,2520.7,3.96700854]
[1747555880283,9.245,2520.9,2520.5,3.96741638]
[1747555880485,9.245,2520.9,2520.5,3.96746677]
[1747555880684,9.245,2520.9,2520.6,3.96721981]
[1747555880890,9.245,2520.9,2520.5,3.96738481]
[1747555881227,11.46536949,2520.9,2520.4,3.96749443]
[1747555881551,16.70748522,2520.9,2520.4,3.96759437]
[1747555882317,13.21195523,2520.9,2520.4,3.96754988]
[1747555883030,9.245,2520.9,2520.5,3.96745459]
[1747555883323,13.21194031,2520.9,2520.4,3.96755892]
[1747555883492,9.245,2520.9,2520.4,3.96762418]
[1747555883695,9.245,2520.9,2520.5,3.96734835]
[1747555883893,13.2118404,2520.9,2520.4,3.96757092]
[1747555884189,13.2118404,2520.9,2520.1,0.62200165]
[1747555884190,3.9672027,2520.7,2520.1,0.62200165]
[1747555884396,3.9672027,2520.7,2520.1,4.59000705]
[1747555884714,5.24261951,2520.6,2520.1,4.5900957]
[1747555884915,3.9675477,2520.5,2520.1,0.62200165]
[1747555885116,8.95,2520.5,2520.1,4.59009431]
[1747555885344,8.95,2520.5,2520.1,0.62200165]
[1747555885845,3.96793875,2520.3,2520.1,0.62200165]
[1747555886051,3.96793875,2520.3,2519.8,4.59057043]
[1747555886205,4.19003434,2520.4,2519.8,4.59057043]
[1747555886409,0.2223443,2520.4,2519.8,0.62200165]
[1747555886648,4.1900611,2520.4,2519.9,3.96834883]
[1747555886948,3.96778586,2520.3,2519.8,4.59049535]
[1747555887115,3.96796449,2520.2,2519.8,0.62200165]
[1747555887315,3.96785958,2520.3,2519.8,4.59048698]
[1747555887646,8.951,2520.5,2519.8,1.60699819]
[1747555887845,8.951,2520.5,2519.8,0.62200165]
[1747555888150,12.91852423,2520.5,2520.0,3.96817621]
[1747555888759,8.951,2520.5,2520.1,3.96800311]
[1747555889252,3.84194109,2520.9,2520.6,3.96728911]
[1747555889549,1.2249,2520.9,2520.2,1.3463]
[1747555890054,1.2249,2520.9,2520.2,5.31423832]
[1747555890267,5.19181988,2520.9,2520.4,3.96759193]
[1747555890756,5.19181988,2520.9,2520.3,4.342284]
[1747555890965,5.19181988,2520.9,2520.5,0.37457386]
[1747555891113,1.2249,2520.9,2520.5,0.37457386]
[1747555891312,3.96730937,2520.6,2520.5,0.37457386]
[1747555891645,12.83730937,2520.6,2520.5,0.37457386]
[1747555891847,14.28430408,2520.6,2520.5,0.37457386]
[1747555893352,3.96754453,2520.5,2520.0,4.34275748]
[1747555893550,8.952,2520.4,2520.0,4.34275748]
[1747555893948,11.65017539,2520.4,2520.0,0.37457386]
[1747555894162,5.2856965,2520.1,2520.0,0.37457386]
[1747555894461,14.1426965,2520.1,2520.0,0.37457386]
[1747555894960,3.96870243,2519.8,2519.6,0.84284582]
[1747555895157,8.952,2519.7,2519.6,0.84284582]
[1747555895563,12.92072643,2519.7,2519.6,0.84284582]
[1747555896230,3.96890144,2519.6,2519.3,0.37457386]
[1747555896574,12.81005729,2519.5,2519.3,0.37457386]
[1747555896721,3.96919901,2519.4,2519.3,0.37457386]
[1747555896928,6.96472464,2519.4,2519.3,0.37457386]
[1747555897525,3.96962863,2519.2,2518.9,0.46827196]
[1747555897721,2.99552563,2519.4,2518.9,0.46827196]
[1747555897927,1.2572,2519.7,2519.2,3.96951413]
[1747555898241,1.2572,2519.7,2519.1,3.96960019]
[1747555898242,17.788,2519.6,2519.1,3.96960019]
[1747555898427,17.788,2519.6,2519.3,3.96930621]
[1747555898623,17.788,2519.6,2519.2,3.96944964]
[1747555898825,24.85828368,2519.6,2518.9,5.72380542]
[1747555899097,24.85828368,2519.6,2519.1,3.96963525]
[1747555899627,20.88939417,2519.6,2518.9,1.2856]
[1747555899828,3.96918261,2519.5,2518.9,1.2856]
[1747555900025,5.39414472,2519.4,2518.9,1.2856]
[1747555900263,1.42482989,2519.4,2519.0,3.96972013]
[1747555900464,1.42482989,2519.4,2518.8,3.97006207]
[1747555900664,3.96905517,2519.5,2518.6,5.25600836]
[1747555900665,17.786,2519.3,2518.6,1.2856]
[1747555900858,17.786,2519.3,2519.0,3.96980703]
[1747555901053,3.96892767,2519.6,2519.1,3.96965299]
[1747555901271,8.837,2519.2,2518.6,5.25602781]
[1747555901571,8.837,2519.2,2518.9,3.96984251]
[1747555901769,8.837,2519.2,2518.6,1.2856]
[1747555901936,8.837,2519.2,2518.8,3.97014451]
[1747555902272,11.38073746,2519.2,2518.7,3.97024522]
[1747555902495,11.38073746,2519.2,2518.9,3.96998295]
[1747555902782,11.38073746,2519.2,2519.0,3.96982339]
[1747555903188,11.38073746,2519.2,2518.9,3.96995384]
[1747555903349,11.38073746,2519.2,2518.6,1.2856]
[1747555903672,15.35036527,2519.2,2518.6,3.970321]
[1747555903876,5.90165178,2519.1,2518.4,0.46827196]
[1747555904036,3.96998866,2518.9,2518.4,0.46827196]
[1747555904377,3.97047918,2518.6,2518.4,0.46827196]
[1747555904670,8.955,2518.5,2518.4,0.46827196]
[1747555905059,1.2631,2518.6,2518.4,0.46827196]
[1747555905260,17.761,2518.5,2518.3,3.97079805]
[1747555905464,17.761,2518.5,2518.1,3.97120559]
[1747555905760,1.2631,2518.6,2518.0,1.3546]
[1747555905960,17.75,2518.5,2518.3,3.97085617]
[1747555906674,17.75,2518.5,2518.2,3.97099221]
[1747555906878,8.0,2518.8,2518.3,3.97093277]
[1747555907180,17.736,2518.7,2518.5,3.97047039]
[1747555907673,8.956,2518.6,2518.3,3.97093264]
[1747555908085,8.956,2518.6,2518.5,3.97061743]
[1747555909087,8.956,2518.7,2518.6,3.97037442]
[1747555909780,8.956,2518.7,2518.1,3.97124816]
[1747555910077,8.956,2518.6,2518.5,3.97061743]
[1747555910275,8.956,2518.6,2518.3,3.97084695]
[1747555910881,8.956,2518.6,2518.3,3.97078879]
[1747555911379,11.125218,2518.6,2518.3,3.97082921]
[1747555911552,8.956,2518.6,2518.3,3.97082921]
[1747555912255,3.9699815,2519.0,2518.2,3.97104578]
[1747555912469,8.957,2518.9,2518.6,3.97045679]
[1747555912687,0.33280878,2519.0,2518.1,1.2471]
[1747555912856,0.33280878,2519.0,2518.8,3.97006333]
[1747555913277,0.33280878,2519.0,2518.7,5.21732427]
[1747555913595,0.33280878,2519.0,2518.6,3.97039904]
[1747555913760,17.481,2518.9,2518.4,5.21779254]
[1747555913960,17.481,2518.9,2518.3,3.97092698]
[1747555914291,21.45106148,2518.9,2518.4,3.97076966]
[1747555914585,21.45106148,2518.9,2518.3,3.97085496]
[1747555914783,21.45103848,2518.9,2518.3,3.97085496]
[1747555914957,2.59847897,2518.8,2518.3,3.97085496]
[1747555915360,17.468,2518.7,2518.1,5.2183228]
[1747555915566,17.468,2518.7,2518.5,3.97053042]
[1747555915963,8.741,2518.6,2518.2,4.34536702]
[1747555916158,8.741,2518.6,2518.5,3.97061743]
[1747555917296,8.741,2518.6,2518.5,4.34491544]
[1747555917452,8.742,2518.9,2518.8,3.97012595]
[1747555918010,1.3361,2519.2,2518.9,3.96990325]
[1747555918200,17.446,2519.1,2518.9,3.96990628]
[1747555918377,8.742,2519.0,2518.9,3.96990628]
[1747555919623,1.3161,2519.4,2518.7,3.97030213]
[1747555919915,8.742,2519.1,2519.0,3.96982929]
[1747555920305,8.742,2519.1,2518.9,3.96994362]
[1747555921104,8.742,2519.1,2519.0,3.96982929]
[1747555921497,8.691,2519.3,2519.2,3.96951413]
[1747555921498,8.742,2519.3,2519.2,3.96951413]
[1747555922977,8.742,2519.3,2519.2,4.34470509]
[1747555924125,11.43,2519.8,2519.5,3.96902838]
[1747555924382,17.391,2519.7,2519.5,3.96891544]
[1747555924583,8.741,2519.7,2519.6,3.96888394]
[1747555925803,8.741,2519.7,2519.6,0.37544233]
[1747555925999,8.74,2519.7,2519.6,0.37544233]
[1747555926199,11.43,2519.8,2519.6,0.37544233]
[1747555926200,11.43,2519.8,2519.7,3.96872643]
[1747555926379,6.99811288,2521.1,2519.7,6.14878955]
[1747555926581,4.26839457,2521.2,2519.9,3.96829975]
[1747555926582,5.20293724,2520.9,2519.9,3.96829975]
[1747555926915,3.96779522,2520.3,2519.7,1.3488]
[1747555927122,0.33280878,2520.3,2519.7,5.31749816]
[1747555927415,0.33280878,2520.3,2519.8,4.34396155]
[1747555927610,0.33280878,2520.3,2520.0,3.96819149]
[1747555927808,0.33280878,2520.3,2520.1,3.96805485]
[1747555928120,0.33280878,2520.3,2520.2,3.96793905]
[1747555928327,3.96794007,2520.2,2519.8,0.37544233]
[1747555928482,0.43007488,2520.1,2519.8,0.37544233]
[1747555928821,3.96841144,2519.9,2519.8,0.37544233]
[1747555929016,8.74,2519.9,2519.8,0.37544233]
[1747555929315,8.74,2519.9,2519.4,1.3076]
[1747555929612,8.0,2520.2,2519.4,1.3076]
[1747555929816,11.429,2520.3,2519.9,3.96829029]
[1747555929987,14.4441,2520.3,2519.9,3.96829029]
[1747555930420,14.4441,2520.3,2519.4,1.3076]
[1747555930733,3.96802129,2520.2,2519.6,3.96883025]
[1747555931105,3.96802129,2520.2,2519.7,3.96871655]
[1747555931300,3.96818499,2520.1,2519.6,3.96887189]
[1747555931500,3.96795161,2520.2,2519.5,4.34330085]
[1747555931688,17.354,2520.1,2519.7,4.34313324]
[1747555932114,14.4441,2520.3,2519.7,0.37441581]
[1747555932290,3.96856893,2519.8,2519.7,0.37441581]
[1747555933230,3.96856893,2519.8,2519.3,4.43762638]
[1747555933429,17.336,2519.7,2519.3,4.43762638]
[1747555934160,8.739,2519.7,2519.3,0.46827196]
[1747555934333,21.518,2520.3,2519.7,1.3076]
[1747555934636,11.76180878,2520.3,2519.9,3.96829607]
[1747555934932,11.76180878,2520.3,2519.8,0.37409746]
[1747555934933,3.96825573,2520.0,2519.8,0.37409746]
[1747555935133,8.739,2519.9,2519.8,0.37409746]
[1747555935307,12.70741144,2519.9,2519.8,0.37409746]
[1747555936136,12.70741144,2519.9,2519.5,0.46827196]
[1747555936137,3.96859852,2519.8,2519.5,0.46827196]
[1747555936333,12.70747133,2519.9,2519.5,0.46827196]
[1747555936653,15.36550601,2519.9,2519.5,0.46827196]
[1747555937515,11.39703468,2519.9,2519.5,0.46827196]
[1747555937931,11.39703468,2519.9,2519.4,3.96919086]
[1747555938130,8.739,2519.9,2519.2,1.2683]
[1747555938436,17.31,2519.9,2519.5,3.9689019]
[1747555938637,3.96880236,2519.7,2519.2,5.23780272]
[1747555938836,3.96864389,2519.8,2519.3,3.96934945]
[1747555939038,6.49333888,2519.8,2519.3,3.96934945]
[1747555939221,6.49333888,2519.8,2519.2,1.2683]
[1747555939421,2.52469499,2519.8,2519.3,3.96933425]
[1747555939625,2.52469499,2519.8,2519.3,0.37466202]
[1747555939817,3.96873111,2519.7,2519.3,0.37466202]
[1747555940017,6.49332759,2519.8,2519.3,0.37466202]
[1747555940251,3.96868048,2519.8,2519.3,0.37466202]
[1747555940419,3.96873054,2519.7,2519.3,0.37466202]
[1747555941060,6.096471,2519.8,2519.3,0.37466202]
[1747555941260,6.09648134,2519.8,2519.4,0.37466202]
[1747555941555,3.96879115,2519.7,2519.4,0.37466202]
[1747555941726,2.12786805,2519.8,2519.4,0.37466202]
[1747555941915,1.9437868,2519.7,2519.4,0.37466202]
[1747555942311,5.91252316,2519.7,2519.4,0.37466202]
[1747555942521,3.96889599,2519.6,2519.4,0.37466202]
[1747555942744,3.96904147,2519.5,2519.4,0.37466202]
[1747555943252,1.12164243,2519.5,2519.0,0.46827196]
[1747555943426,3.96959175,2519.2,2519.0,0.46827196]
[1747555944026,5.3043717,2519.1,2519.0,0.46827196]
[1747555945062,3.97013533,2518.9,2518.4,5.30425604]
[1747555945263,3.97013533,2518.9,2518.4,1.3335]
[1747555945264,8.522,2518.8,2518.4,1.3335]
[1747555945414,8.522,2518.8,2518.3,3.28968258]
[1747555945615,8.522,2518.8,2518.4,3.97068477]
[1747555945826,8.522,2518.7,2518.6,3.97040886]
[1747555946164,11.427,2519.3,2518.6,8.12533499]
[1747555946362,3.96959368,2519.2,2518.7,4.3457683]
[1747555946734,15.39639339,2519.3,2518.8,3.97013999]
[1747555946959,11.427,2519.3,2518.9,3.96997466]
[1747555947364,8.523,2519.8,2519.2,2.82141062]
[1747555947651,3.9687327,2519.7,2519.2,6.7908466]
[1747555947848,3.96873013,2519.7,2519.2,6.7908466]
[1747555948048,12.49162143,2519.8,2519.3,4.3448186]
[1747555948252,15.12458126,2519.8,2519.3,4.3448186]
[1747555949182,15.12458126,2519.8,2519.4,0.37546617]
[1747555949947,11.15595983,2519.8,2519.5,3.96900265]
[1747555950156,11.15595983,2519.8,2519.5,3.96904147]
[1747555950157,8.523,2519.8,2519.5,3.96904147]
[1747555950318,8.85580878,2519.8,2519.5,3.96904147]
[1747555950655,0.33280878,2519.7,2519.5,5.26064147]
[1747555951442,0.33280878,2519.7,2519.6,3.96888394]
[1747555951638,0.33280878,2519.7,2519.6,4.34418875]
[1747555951949,0.33280878,2519.7,2519.6,5.58682733]
[1747555952950,0.33280878,2519.7,2519.6,6.82362733]
[1747555953155,0.33280878,2519.7,2519.6,7.29189929]
[1747555954866,0.33280878,2519.7,2519.6,15.29189929]
[1747555955257,0.33280878,2519.7,2519.6,23.77289929]
[1747555956761,0.33280878,2519.7,2519.6,23.30462733]
[1747555957547,0.33280878,2519.7,2519.6,14.82362733]
[1747555957733,0.33280878,2519.7,2519.6,5.58098875]
[1747555958129,8.522,2520.2,2520.1,3.9680965]
[1747555958759,8.522,2520.2,2520.0,3.96817773]
[1747555958961,8.522,2520.2,2520.1,3.9680965]
[1747555959175,8.522,2520.2,2520.1,4.34340131]
[1747555960577,8.522,2520.2,2520.1,0.37530481]
[1747555962076,8.522,2520.2,2520.1,4.34340131]
[1747555962772,8.521,2520.4,2520.1,4.34340131]
[1747555962970,8.521,2520.4,2520.3,3.96775812]
[1747555963574,3.96703643,2520.8,2520.3,3.96775812]
[1747555963876,21.2939,2520.9,2520.6,3.96721433]
[1747555964073,3.96724286,2520.7,2520.0,3.96825396]
[1747555964276,3.96724286,2520.7,2520.2,3.96791661]
[1747555964574,25.26081754,2520.9,2520.4,3.96758974]
[1747555964739,12.7729,2520.9,2520.5,3.96736911]
[1747555964946,15.49502587,2520.9,2520.6,3.96729908]
[1747555965165,16.923,2520.8,2520.6,3.96729908]
[1747555965369,16.923,2520.8,2520.5,3.96736145]
[1747555965676,3.96726404,2520.7,2520.2,3.9678404]
[1747555966359,20.89009765,2520.8,2520.2,3.9678404]
[1747555966557,3.36629977,2520.7,2520.0,3.96820202]
[1747555966875,3.96736883,2520.6,2519.9,4.11411062]
[1747555967080,3.96770647,2520.4,2519.9,5.26106179]
[1747555967278,8.52,2520.3,2519.9,5.26106179]
[1747555967466,8.52,2520.3,2520.0,3.96819996]
[1747555967667,8.52,2520.3,2519.9,5.26106856]
[1747555967869,8.52,2520.3,2520.0,3.96823294]
[1747555968457,0.92799753,2520.4,2520.0,3.96823294]
[1747555968658,8.52,2520.3,2520.0,3.96823294]
[1747555968888,8.52,2520.3,2520.1,3.96809533]
[1747555969088,8.52,2520.3,2520.2,3.83779512]
[1747555969863,8.59109372,2520.7,2520.2,3.83779512]
[1747555970068,8.59109372,2520.7,2520.3,3.96768387]
[1747555970069,9.37910937,2520.6,2520.3,3.96768387]
[1747555970264,8.52,2520.7,2520.6,3.96730937]
[1747555970472,8.52,2520.7,2520.2,2.82141062]
[1747555970791,8.52,2520.7,2520.5,3.96739854]
[1747555970992,8.52,2520.7,2520.3,0.37416581]
[1747555971198,4.81942711,2520.6,2520.3,0.37416581]
[1747555971364,1.2576,2520.4,2520.3,0.37416581]
[1747555971881,5.22522418,2520.4,2520.3,0.37416581]
[1747555972079,5.22522418,2520.4,2520.0,0.4684287]
[1747555972255,13.58522418,2520.4,2520.0,0.4684287]
[1747555972460,15.42569368,2520.4,2520.0,0.4684287]
[1747555973088,15.42569368,2520.4,2519.9,6.7897619]
[1747555973397,15.42569368,2520.4,2519.7,5.22386527]
[1747555973398,3.9680148,2520.2,2519.7,1.2552]
[1747555973699,8.348,2520.2,2519.8,3.96853232]
[1747555974595,8.348,2520.2,2519.6,6.79026076]
[1747555974596,12.31602654,2520.2,2519.6,6.79026076]
[1747555974764,8.348,2520.2,2519.7,3.96871765]
[1747555974959,15.09010432,2520.2,2519.6,2.82141062]
[1747555975288,3.96824894,2520.1,2519.6,2.82141062]
[1747555975859,11.122161,2520.2,2519.7,3.96871547]
[1747555976192,16.681,2520.2,2519.7,0.37500603]
[1747555976375,3.96818319,2520.1,2519.7,0.37500603]
[1747555976783,3.96830737,2520.0,2519.7,0.37500603]
[1747555976991,3.96818319,2520.1,2519.7,0.37500603]
[1747555976992,1.3502,2520.1,2519.7,0.37500603]
[1747555977161,3.96856893,2519.8,2519.7,0.37500603]
[1747555977362,3.96904147,2519.5,2519.4,0.4684287]
[1747555977599,12.31704147,2519.5,2519.4,0.4684287]
[1747555977900,13.66724147,2519.5,2519.4,0.4684287]
[1747555978205,21.66724147,2519.5,2519.4,0.4684287]
[1747555978495,25.06405614,2519.5,2519.4,0.4684287]
[1747555978694,25.28634318,2519.5,2519.4,0.4684287]
[1747555978883,25.28634318,2519.5,2518.8,0.37576326]
[1747555978884,5.32018689,2518.9,2518.8,0.37576326]
[1747555979219,13.66818689,2518.9,2518.8,0.37576326]
[1747555979898,9.6982,2518.9,2518.6,0.4684287]
[1747555980062,15.69273863,2518.9,2518.6,0.4684287]
[1747555980402,3.97015984,2518.8,2518.6,0.4684287]
[1747555980704,11.72266478,2518.9,2518.6,0.4684287]
[1747555981667,15.36596139,2519.5,2518.6,0.4684287]
[1747555981668,3.96940312,2519.3,2518.6,0.4684287]
[1747555981902,9.7002,2519.2,2518.8,3.97006303]
[1747555982102,1.3502,2519.4,2518.7,2.82141062]
[1747555982304,8.35,2519.6,2519.2,3.96951413]
[1747555982505,8.35,2519.6,2519.4,3.96915821]
[1747555982798,8.35,2519.6,2519.3,3.96926711]
[1747555983299,1.3502,2519.8,2519.4,3.96913652]
[1747555983600,1.3502,2519.8,2519.1,1.246]
[1747555983601,8.35,2519.6,2519.1,1.246]
[1747555983780,12.31896865,2519.6,2519.1,1.246]
[1747555983976,3.96904813,2519.5,2519.0,2.82141062]
[1747555984502,3.96904813,2519.5,2519.0,6.79123086]
[1747555984704,3.96904813,2519.5,2519.0,2.82141062]
[1747555984905,1.23190481,2519.4,2519.0,2.82141062]
[1747555985207,3.96967768,2519.1,2518.6,4.43880727]
[1747555985371,8.35,2519.0,2518.7,3.97025787]
[1747555985569,8.35,2519.0,2518.8,3.97014451]
[1747555985874,8.35,2519.0,2518.8,3.97006572]
[1747555986080,8.35,2519.0,2518.9,3.96998689]
[1747555986481,8.351,2519.1,2519.0,3.96974623]
[1747555986687,8.351,2519.1,2518.9,3.9699326]
[1747555987309,20.31994179,2519.6,2519.1,3.96964652]
[1747555987629,2.16701418,2519.5,2518.9,3.96994926]
[1747555987771,2.16701418,2519.5,2519.1,3.96966153]
[1747555987971,2.16701418,2519.5,2519.0,3.96976728]
[1747555988196,6.13607431,2519.5,2519.0,3.96976728]
[1747555988394,0.33280878,2519.4,2518.9,3.96991486]
[1747555988599,0.33280878,2519.4,2519.0,3.96982486]
[1747555988968,0.33280878,2519.4,2519.1,1.246]
[1747555989422,0.33280878,2519.4,2519.0,6.79116299]
[1747555989423,4.30201185,2519.4,2519.0,2.82141062]
[1747555989710,0.33280878,2519.4,2519.0,6.79123529]
[1747555990204,0.33280878,2519.4,2519.0,2.82141062]
[1747555990411,0.33280878,2519.4,2519.1,3.96952608]
[1747555990609,0.33280878,2519.4,2519.1,3.96959806]
[1747555990992,0.33280878,2519.4,2519.0,6.79119548]
[1747555991185,5.56738825,2519.4,2518.9,5.21594938]
[1747555991403,3.96938085,2519.3,2518.9,1.246]
[1747555991612,2.94829445,2519.4,2518.7,0.4684287]
[1747555991613,8.63080878,2519.2,2518.7,0.4684287]
[1747555991785,3.96973161,2519.1,2518.7,0.4684287]
[1747555991985,8.351,2519.0,2518.7,0.4684287]
[1747555992513,10.84312563,2519.0,2518.7,0.4684287]
[1747555992815,14.81303726,2519.0,2518.7,0.4684287]
[1747555993019,3.97001121,2518.9,2518.7,0.4684287]
[1747555993216,14.81306847,2519.0,2518.7,0.4684287]
[1747555993426,10.84312563,2519.0,2518.7,0.4684287]
[1747555993777,10.84312563,2519.0,2518.7,4.43864852]
[1747555993981,0.33280878,2519.2,2518.8,3.97011574]
[1747555994182,8.351,2519.1,2518.8,3.97014451]
[1747555994384,8.61480878,2519.2,2518.8,3.97014451]
[1747555994385,8.61280878,2519.2,2518.8,3.97014451]
[1747555994621,8.351,2519.0,2518.9,3.96998689]
[1747555994918,8.351,2519.0,2518.9,5.21598689]
[1747555995080,8.351,2519.4,2519.2,3.96949653]
[1747555996320,15.39351523,2519.9,2519.3,1.246]
[1747555996321,11.425,2519.9,2519.3,1.246]
[1747555996482,8.351,2519.8,2519.5,3.96902109]
[1747555996686,8.351,2519.8,2519.6,3.96875385]
[1747555996929,11.425,2519.9,2519.7,3.96872382]
[1747555997139,13.4026,2519.9,2519.6,3.96880789]
[1747555997423,11.425,2519.9,2519.7,3.96870683]
[1747555998104,11.425,2519.9,2519.8,3.96856893]
[1747555998289,11.425,2519.9,2519.8,1.3344]
[1747555998491,11.425,2519.9,2519.8,5.30296893]
[1747556000127,8.351,2520.3,2519.9,3.96830714]
[1747556000424,8.351,2520.3,2520.1,3.96798948]
[1747556000792,8.351,2520.3,2520.0,3.96818843]
[1747556001035,10.54289128,2520.3,2519.8,1.3344]
[1747556001188,14.51071387,2520.3,2519.9,0.3746115]
[1747556001387,10.54289128,2520.3,2519.9,0.3746115]
[1747556001717,14.5107538,2520.3,2519.9,0.3746115]
[1747556002228,10.54289128,2520.3,2519.9,4.34302096]
[1747556002403,1.45105835,2520.2,2519.9,0.3746115]
[1747556002717,1.45105835,2520.2,2519.9,4.34299945]
[1747556002925,1.45105835,2520.2,2519.9,3.96838795]
[1747556003324,10.54289128,2520.3,2519.8,3.96856189]
[1747556003502,8.35,2520.2,2519.8,3.96856893]
[1747556003697,12.31804707,2520.2,2519.7,6.79005498]
[1747556003902,12.31804707,2520.2,2519.5,5.30342036]
[1747556004413,12.31804707,2520.2,2519.6,0.37477843]
[1747556004620,14.77113189,2520.2,2519.7,3.96871307]
[1747556004820,10.80308482,2520.2,2519.7,3.96871307]
[1747556005137,10.80308482,2520.2,2519.8,3.96844731]
[1747556005308,10.80308482,2520.2,2519.9,3.96836645]
[1747556005535,8.245,2520.1,2519.9,3.96836645]
[1747556006044,8.245,2520.1,2519.8,3.96852669]
[1747556006430,8.245,2520.1,2519.9,3.96831956]
[1747556006652,8.245,2520.1,2519.8,3.96848586]
[1747556007231,8.245,2520.1,2519.5,8.59323719]
[1747556007435,8.245,2520.1,2519.7,3.96869912]
[1747556008983,1.3314,2520.5,2519.8,2.82141062]
[1747556009135,1.2381,2520.7,2520.3,3.96773914]
[1747556009530,5.20527911,2520.7,2520.1,2.82141062]
[1747556009928,3.96737651,2520.6,2520.1,2.82141062]
[1747556010129,3.96746815,2520.5,2520.1,2.82141062]
[1747556010324,5.28791512,2520.6,2520.1,2.82141062]
[1747556012143,3.96762839,2520.4,2519.9,1.326]
[1747556012344,8.244,2520.4,2519.6,4.61583932]
[1747556012550,12.2117044,2520.4,2519.9,3.96829752]
[1747556012731,3.96802859,2520.2,2519.7,3.96865003]
[1747556013276,3.96802859,2520.2,2519.6,4.14741062]
[1747556013277,3.9681263,2520.1,2519.6,8.11624327]
[1747556013870,1.2432,2520.3,2519.6,4.14741062]